Workbook

Sheet M
D17: A | E17: Financiële kengetallen | J17: klik =>
D20: B | E20: Activiteiten kengetallen | J20: klik =>

Sheet B
D2: Balansen | I2: Kengetallen? | K2: 2006 | M2: 2007
B3: Activa | C3: 31-12-06 | D3: 31-12-07 | E3: Passiva | F3: 31-12-06 | G3: 31-12-07
B4: Gebouwen | C4: 3000 | D4: 10000 | E4: EV | F4: 4000 | G4: 4200 | I4: Liquiditeit
B5: Voorraden | C5: 1500 | D5: 2000 | E5: Hypotheek | F5: 1500 | G5: 4500 | I5: Current Ratio | K5: 2.14
B6: Debiteuren | C6: 3000 | D6: 2800 | E6: Bank | F6: 1000 | G6: 3800 | I6: Quick Ratio | K6: 1.45
B7: Kas | C7: 200 | D7: 200 | E7: Crediteuren | F7: 1200 | G7: 2500
C8: =SUM(C4:C7) -> 7700 | D8: =SUM(D4:D7) -> 15000 | F8: =SUM(F4:F7) -> 7700 | G8: =SUM(G4:G7) -> 15000 | I8: Solvabiliteit
I9: Solvabiliteitspercentage | K9: 52 | L9: =IF(K9="","",IF(K9=52,"%","")) -> %
B10: Resultatenrekening 2006 | E10: Resultatenrekening 2007
C11: Kosten | D11: Opbrengsten | F11: Kosten | G11: Opbrengsten | I11: Rentabiliteit
B12: Opbrengsten | D12: 14600 | E12: Opbrengsten | G12: 16000 | I12: RTV | K12: 34 | L12: =IF(K12="","",IF(K12=34,"%","")) -> %
B13: Inkoop | C13: 6200 | E13: Inkoop | F13: 7000 | I13: REV | K13: 55 | L13: =IF(K13="","",IF(K13=55,"%","")) -> %
B14: Bedr.kosten | C14: 5000 | E14: Bedr. kosten | F14: 6200 | I14: RVV | K14: 11 | L14: =IF(K14="","",IF(K14=11,"%","")) -> %
B15: Afschrijving | C15: 800 | E15: Afschrijving | F15: 1400 | I15: Hefboomeffect | K15: 21 | L15: =IF(K15="","",IF(K15=21,"%","")) -> %
B16: Rente | C16: 400 | E16: Rente | F16: 1000
B17: Winst 2006 | C17: =14600-SUM(C13:C16) -> 2200 | E17: Winst 2007 | F17: 400
C18: 14600 | D18: =D12-D17 -> 14600 | F18: =SUM(F13:F17) -> 16000 | G18: =G12-G17 -> 16000
C21: Het hefboomeffect in 2006
C23: ''Groen Advies'' heeft geld geleend tegen 11%
C24: het eigen bedrijf heeft een rendement van 34%.
C25: Elke geleende euro laat de opbrengst van het
C26: eigen vermogen stijgen tot (ver) boven de RTV.
C28: Reken uit hoe groot het verschil tussen REV en
C29: RTV bij -Groen Advies- is.

Sheet I

Sheet D
B2: Balans
A3: Activa | B3: 31-12-06 | C3: Passiva | D3: 31-12-06 | J3: 6200 | K3: 6200 | L3: Inkoopkosten
A4: Gebouwen | B4: 3000 | C4: EV | D4: 4000 | H4: O
A5: Voorraden | B5: 1500 | C5: Hypotheek | D5: 1500 | H5: Omzet
A6: Debiteuren | B6: 3000 | C6: Bank | D6: 1000 | F6: TR | H6: (euro's) | J6: 5000 | K6: 5000 | L6: Bedrijfskosten
A7: Kas | B7: 200 | C7: Crediteuren | D7: 1200 | F7: Totaal | H7: 14600
B8: =SUM(B4:B7) -> 7700 | D8: =SUM(D4:D7) -> 7700 | F8: Resultaat
F9: 2600 | H9: 12000 | J9: 800 | K9: 800 | L9: Afschrijvingen
D10: 100 x TR / O | H10: Totale
D11: Bruto | H11: kosten
D12: marge | F12: Omzet | H12: TK
D13: 17.8 | F13: (euro's)
F14: 14600
B15: RTV | F15: O
A16: TR / TV
B17: % | F17: O
F19: (euro's)
F20: Omzet
D21: Omloop- | H21: Vl.A
D22: snelheid | H22: Vlottende | J22: 1500 | K22: 1500 | L22: Voorraden
D23: O / TV | H23: Activa
F24: Totaal
A25: Resultatenrekening 2006 | C25: Kosten | D25: Opbrengsten | F25: Vermogen | J25: 3000 | K25: 3000 | L25: Debiteuren
A26: Opbrengsten | D26: 14600 | F26: TV
A27: Inkoopkosten | C27: 6200 | H27: Vaste
A28: Bedrijfskosten | C28: 5000 | H28: Activa | J28: 200 | K28: 200 | L28: Kas
A29: Afschrijving | C29: 800 | H29: VA
A30: Rente | C30: 400
A31: Winst 2006 | C31: =14600-SUM(C27:C30) -> 2200
A32: Totaal | C32: 14600 | D32: =D26-D31 -> 14600

Sheet D1
B2: Balans
A3: Activa | B3: 31-12-06 | C3: Passiva | D3: 31-12-06 | J3: 6200 | K3: 6200 | L3: Inkoopkosten
A4: Gebouwen | B4: 3000 | C4: EV | D4: 4000 | H4: O
A5: Voorraden | B5: 1500 | C5: Hypotheek | D5: 1500 | H5: Omzet
A6: Debiteuren | B6: 3000 | C6: Bank | D6: 1000 | F6: TR | H6: (euro's) | J6: 5000 | K6: 5000 | L6: Bedrijfskosten
A7: Kas | B7: 200 | C7: Crediteuren | D7: 1200 | F7: Totaal | H7: 14600
B8: =SUM(B4:B7) -> 7700 | D8: =SUM(D4:D7) -> 7700 | F8: Resultaat
F9: =14600-H9 -> 2600 | H9: =J3+J6+J9+J12 -> 12000 | J9: 800 | K9: 800 | L9: Afschrijvingen
D10: 100 x TR / O | H10: Totale
D11: Bruto | H11: Kosten
D12: marge | F12: Omzet | H12: TK
D13: =100*F9/F14 -> 17.8 | F13: (euro's)
D14: 17.8 | F14: 14600
B15: RTV | F15: O
A16: TR / TV | B16: =D13*D20 -> 34
A17: 34 | B17: % | F17: O
F18: 14600
D19: 1.9 | F19: (euro's)
D20: =14600/F23 -> 1.9 | F20: Omzet
D21: Omloop- | H21: Vl.A
D22: snelheid | H22: Vlottende | J22: 1500 | K22: 1500 | L22: Voorraden
D23: O / TV | F23: =H24+H26 -> 7700 | H23: Activa
F24: Totaal | H24: =J22+J25+J28 -> 4700
A25: Resultatenrekening 2006 | C25: Kosten | D25: Opbrengsten | F25: Vermogen | J25: 3000 | K25: 3000 | L25: Debiteuren
A26: Opbrengsten | D26: 14600 | F26: TV | H26: 3000
A27: Inkoopkosten | C27: 6200 | H27: Vaste
A28: Bedrijfskosten | C28: 5000 | H28: Activa | J28: 200 | K28: 200 | L28: Kas
A29: Afschrijving | C29: 800 | H29: VA
A30: Rente | C30: 400
A31: Winst 2006 | C31: =14600-SUM(C27:C30) -> 2200
A32: Totaal | C32: 14600 | D32: =D26-D31 -> 14600
